fUSD/lending_fUSD_20250208
["ID","MTS","AMOUNT","RATE_DAILY","PERIOD"]
[352256747,1739019073028,-1727.91,0.00010668,2]
[352256748,1739019073037,-500.0,0.00010668,2]
[352256749,1739019073047,-500.0,0.00010668,2]
[352256750,1739019073056,-500.0,0.00010668,2]
[352256751,1739019073066,-3984.19,0.00010668,2]
[352256752,1739019073075,-949.44,0.00010668,2]
[352256753,1739019073084,-500.0,0.00010668,2]
[352256754,1739019073094,-500.0,0.00010668,2]
[352256755,1739019073165,-3057.43,0.00010668,2]
[352256756,1739019073175,-714.81,0.00010668,2]
[352256757,1739019073183,-4918.46,0.00010668,2]
[352256758,1739019073194,-618.76,0.00010668,2]
[352256759,1739019073204,-1900.09,0.00010668,2]
[352256760,1739019073213,-500.0,0.00010668,2]
[352256761,1739019073221,-2718.67,0.00010668,2]
[352256762,1739019073230,-1307.78,0.00010668,2]
[352256763,1739019073241,-500.0,0.00010668,2]
[352256764,1739019073250,-500.0,0.00010668,2]
[352256765,1739019073259,-721.31,0.00010668,2]
[352256766,1739019073267,-500.0,0.00010668,2]
[352256767,1739019073276,-500.0,0.00010668,2]
[352256768,1739019073285,-500.0,0.00010668,2]
[352256769,1739019073295,-500.0,0.00010668,2]
[352256770,1739019073304,-500.0,0.00010668,2]
[352256771,1739019073315,-570.33,0.00010668,2]
[352256772,1739019073324,-2870.05,0.00010668,2]
[352256773,1739019073333,-860.75,0.00010668,2]
[352256774,1739019073342,-500.0,0.00010668,2]
[352256775,1739019073351,-3205.41,0.00010668,2]
[352256776,1739019073361,-500.0,0.00010668,2]
[352256777,1739019073369,-500.0,0.00010668,2]
[352256778,1739019073378,-3098.11,0.00010668,2]
[352256779,1739019073387,-500.0,0.00010668,2]
[352256780,1739019073397,-1823.36,0.00010668,2]
[352256781,1739019073409,-600.49,0.00010668,2]
[352256782,1739019073418,-1639.56,0.00010668,2]
[352256783,1739019073427,-313.59810432,0.00010668,2]
[352256784,1739019073438,-2230.91,0.00010668,2]
[352256785,1739019073448,-5256.2,0.00010668,2]
[352256786,1739019073458,-500.0,0.00010668,2]
[352256787,1739019073468,-755.89,0.00010668,2]
[352256788,1739019073478,-1950.99,0.00010668,2]
[352256789,1739019073487,-1465.86,0.00010668,2]
[352256790,1739019073496,-730.02,0.00010668,2]
[352256791,1739019073505,-500.0,0.00010668,2]
[352256792,1739019073514,-500.0,0.00010668,2]
[352256793,1739019073523,-597.26,0.00010668,2]
[352256794,1739019073533,-3908.9,0.00010668,2]
[352256795,1739019073542,-500.0,0.00010668,2]
[352256796,1739019073551,-1496.15,0.00010668,2]
[352256797,1739019073562,-500.0,0.00010668,2]
[352256798,1739019073571,-3150.83,0.00010668,2]
[352256799,1739019073580,-500.0,0.00010668,2]
[352256800,1739019073589,-3721.01,0.00010668,2]
[352256801,1739019073598,-500.0,0.00010668,2]
[352256802,1739019073607,-2167.97,0.00010668,2]
[352256803,1739019073616,-1347.86,0.00010668,2]
[352256804,1739019073625,-1543.2,0.00010668,2]
[352256805,1739019073634,-500.0,0.00010668,2]
[352256806,1739019073643,-3577.47,0.00010668,2]
[352256807,1739019073652,-549.39,0.00010669,2]
[352256808,1739019073661,-500.0,0.00010669,2]
[352256809,1739019073670,-500.0,0.00010669,2]
[352256810,1739019073679,-500.0,0.00010669,2]
[352256811,1739019073688,-500.0,0.00010669,2]
[352256812,1739019073697,-261.22,0.00010669,2]
[352256813,1739019073706,-602.87,0.00010669,2]
[352256814,1739019073715,-1367.43,0.00010669,2]
[352256815,1739019073725,-567.33,0.00010669,2]
[352256816,1739019073735,-742.72,0.00010669,2]
[352256817,1739019073744,-1443.9,0.00010669,2]
[352256818,1739019073753,-500.0,0.00010669,2]
[352256819,1739019073762,-1546.44,0.00010669,2]
[352256820,1739019073772,-2113.11,0.00010669,2]
[352256821,1739019073781,-1746.31,0.00010669,2]
[352256822,1739019073790,-825.67,0.00010669,2]
[352256823,1739019073799,-706.55,0.00010669,2]
[352256824,1739019073808,-754.09,0.00010669,2]
[352256825,1739019073817,-500.0,0.00010669,2]
[352256826,1739019073826,-1816.29,0.00010669,2]
[352256827,1739019073836,-792.06,0.00010669,2]
[352256828,1739019073845,-1800.25,0.00010669,2]
[352256829,1739019073854,-500.0,0.00010669,2]
[352256830,1739019073863,-1741.18,0.00010669,2]
[352256831,1739019073872,-708.43,0.00010669,2]
[352256832,1739019073881,-820.36,0.00010669,2]
[352256833,1739019073890,-500.0,0.00010669,2]
[352256834,1739019073899,-879.9,0.00010669,2]
[352256835,1739019073908,-566.23,0.00010669,2]
[352256836,1739019073918,-500.0,0.00010669,2]
[352256837,1739019073927,-668.43,0.00010669,2]
[352256838,1739019073936,-697.71,0.00010669,2]
[352256839,1739019073945,-922.83,0.00010669,2]
[352256840,1739019073954,-500.0,0.00010669,2]
[352256841,1739019073963,-1031.15,0.00010669,2]
[352256842,1739019073974,-500.0,0.00010669,2]
[352256843,1739019073983,-151.0,0.0001067,2]
[352256844,1739019073992,-174.22140754,0.00010714,2]
[352256845,1739019074003,-776.87,0.00010739,2]
[352256846,1739019074012,-201.0,0.0001074,2]
[352256847,1739019074021,-1000.0,0.00010783,2]
[352256848,1739019074030,-500.0,0.00010803,2]
[352256849,1739019074040,-500.0,0.00010803,2]
[352256850,1739019074049,-500.0,0.00010803,2]
[352256851,1739019074059,-816.95,0.00010803,2]
[352256852,1739019074067,-599.04,0.00010803,2]
[352256853,1739019074077,-500.0,0.00010804,2]
[352256854,1739019074086,-500.0,0.00010804,2]
[352256855,1739019074095,-500.0,0.00010804,2]
[352256856,1739019074106,-500.0,0.00010804,2]
[352256857,1739019074115,-500.0,0.00010804,2]
[352256858,1739019074127,-502.49464332,0.00010804,2]
[352256859,1739019074137,-500.0,0.00010804,2]
[352256860,1739019074147,-500.0,0.00010804,2]
[352256861,1739019074156,-500.0,0.00010804,2]
[352256862,1739019074166,-500.0,0.00010804,2]
[352256863,1739019074175,-500.0,0.00010804,2]
[352256864,1739019074184,-500.0,0.00010804,2]
[352256865,1739019074193,-500.0,0.00010804,2]
[352256866,1739019074202,-500.0,0.00010804,2]
[352256867,1739019074211,-515.97,0.00010804,2]
[352256868,1739019074220,-500.0,0.00010804,2]
[352256869,1739019074230,-648.2,0.00010804,2]
[352256870,1739019074239,-500.0,0.00010804,2]
[352256871,1739019074248,-500.0,0.00010804,2]
[352256872,1739019074257,-500.0,0.00010804,2]
[352256873,1739019074266,-3008.63252,0.00010804,2]
[352256874,1739019074276,-500.0,0.00010804,2]
[352256875,1739019074285,-512.2612641,0.00010804,2]
[352256876,1739019074294,-2728.309725,0.00010804,2]
[352256877,1739019074303,-3964.16,0.00010804,2]
[352256878,1739019074312,-500.0,0.00010804,2]
[352256879,1739019074321,-500.0,0.00010804,2]
[352256880,1739019074331,-500.0,0.00010804,2]
[352256881,1739019074339,-500.0,0.00010804,2]
[352256882,1739019074350,-1789.1,0.00010804,2]
[352256883,1739019074359,-500.0,0.00010804,2]
[352256884,1739019074368,-500.0,0.00010804,2]
[352256885,1739019074378,-500.0,0.00010804,2]
[352256886,1739019074387,-500.0,0.00010804,2]
[352256887,1739019074398,-2632.84,0.00010804,2]
[352256888,1739019074408,-500.0,0.00010804,2]
[352256889,1739019074417,-1472.27,0.00010804,2]
[352256890,1739019074426,-500.0,0.00010804,2]
[352256891,1739019074439,-500.0,0.00010804,2]
[352256892,1739019074450,-510.88666813,0.00010804,2]
[352256893,1739019074459,-500.0,0.00010804,2]
[352256894,1739019074469,-1246.73,0.00010804,2]
[352256895,1739019074481,-500.0,0.00010804,2]
[352256896,1739019074492,-732.86,0.00010804,2]
[352256897,1739019074501,-1635.35,0.00010804,2]
[352256898,1739019074511,-957.45,0.00010804,2]
[352256899,1739019074520,-500.0,0.00010804,2]
[352256900,1739019074530,-2129.11,0.00010804,2]
[352256901,1739019074539,-500.0,0.00010804,2]
[352256902,1739019074549,-500.0,0.00010804,2]
[352256903,1739019074559,-1486.98,0.00010804,2]
[352256904,1739019074569,-500.0,0.00010804,2]
[352256905,1739019074578,-500.0,0.00010804,2]
[352256906,1739019074588,-500.0,0.00010804,2]
[352256907,1739019074598,-719.04,0.00010804,2]
[352256908,1739019074608,-500.0,0.00010804,2]
[352256909,1739019074618,-2812.8,0.00010804,2]
[352256910,1739019074627,-500.0,0.00010804,2]
[352256911,1739019074638,-500.0,0.00010804,2]
[352256912,1739019074647,-500.0,0.00010804,2]
[352256913,1739019074657,-500.0,0.00010804,2]
[352256914,1739019074667,-500.0,0.00010804,2]
[352256915,1739019074676,-500.0,0.00010804,2]
[352256916,1739019074686,-500.0,0.00010804,2]
[352256917,1739019074695,-1251.32,0.00010804,2]
[352256918,1739019074705,-500.0,0.00010804,2]
[352256919,1739019074714,-500.0,0.00010804,2]
[352256920,1739019074724,-2408.46,0.00010804,2]
[352256921,1739019074733,-576.34,0.00010804,2]
[352256922,1739019074743,-2049.94,0.00010804,2]
[352256923,1739019074752,-500.0,0.00010804,2]
[352256924,1739019074762,-2596.03,0.00010804,2]
[352256925,1739019074771,-9020.31,0.00010804,2]
[352256926,1739019074782,-500.0,0.00010804,2]
[352256927,1739019074791,-1786.43,0.00010804,2]
[352256928,1739019074801,-694.65,0.00010804,2]
[352256929,1739019074810,-1924.37,0.00010804,2]
[352256930,1739019074819,-3419.0,0.00010804,2]
[352256931,1739019074828,-1572.95,0.00010804,2]
[352256932,1739019074838,-500.0,0.00010804,2]
[352256933,1739019074848,-1504.29,0.00010804,2]
[352256934,1739019074857,-500.0,0.00010804,2]
[352256935,1739019074866,-2063.74,0.00010804,2]
[352256936,1739019074875,-2135.24,0.00010804,2]
[352256937,1739019074884,-500.0,0.00010804,2]
[352256938,1739019074894,-2347.77,0.00010804,2]
[352256939,1739019074903,-3498.02,0.00010804,2]
[352256940,1739019074912,-500.0,0.00010804,2]
[352256941,1739019074922,-500.0,0.00010804,2]
[352256942,1739019074931,-500.0,0.00010804,2]
[352256943,1739019074941,-2405.82,0.00010804,2]
[352256944,1739019074950,-500.0,0.00010804,2]
[352256945,1739019074959,-2856.96,0.00010804,2]
[352256946,1739019074968,-500.0,0.00010804,2]
[352256947,1739019074978,-1222.26,0.00010804,2]
[352256948,1739019074988,-500.0,0.00010804,2]
[352256949,1739019074997,-500.0,0.00010804,2]
[352256950,1739019075007,-2445.85,0.00010804,2]
[352256951,1739019075016,-500.0,0.00010804,2]
[352256952,1739019075026,-1846.25,0.00010804,2]
[352256953,1739019075035,-500.0,0.00010804,2]
[352256954,1739019075045,-500.0,0.00010804,2]
[352256955,1739019075055,-3417.47,0.00010804,2]
[352256956,1739019075066,-500.0,0.00010804,2]
[352256957,1739019075075,-504.00701414,0.00010804,2]
[352256958,1739019075085,-1061.22,0.00010804,2]
[352256959,1739019075095,-4021.02,0.00010804,2]
[352256960,1739019075104,-6046.06,0.00010804,2]
[352256961,1739019075114,-3135.85,0.00010804,2]
[352256962,1739019075123,-500.0,0.00010804,2]
[352256963,1739019075133,-2712.34,0.00010804,2]
[352256964,1739019075143,-500.0,0.00010804,2]
[352256965,1739019075152,-500.0,0.00010804,2]
[352256966,1739019075162,-500.0,0.00010804,2]
[352256967,1739019075171,-500.0,0.00010804,2]
[352256968,1739019075181,-500.0,0.00010804,2]
[352256969,1739019075190,-3780.84,0.00010804,2]
[352256970,1739019075200,-500.0,0.00010804,2]
[352256971,1739019075210,-500.0,0.00010804,2]
[352256972,1739019075219,-500.0,0.00010804,2]
[352256973,1739019075229,-500.0,0.00010804,2]
[352256974,1739019075238,-1697.73,0.00010804,2]
[352256975,1739019075247,-4117.97,0.00010804,2]
[352256976,1739019075257,-500.0,0.00010804,2]
[352256977,1739019075267,-500.0,0.00010804,2]
[352256978,1739019075276,-500.0,0.00010804,2]
[352256979,1739019075286,-500.0,0.00010804,2]
[352256980,1739019075295,-1473.95,0.00010804,2]
[352256981,1739019075306,-1832.0,0.00010804,2]
[352256982,1739019075315,-3636.89,0.00010804,2]
[352256983,1739019075324,-500.0,0.00010804,2]
[352256984,1739019075333,-500.0,0.00010804,2]
[352256985,1739019075343,-500.0,0.00010804,2]
[352256986,1739019075353,-1785.52,0.00010804,2]
[352256987,1739019075362,-633.03756203,0.00010804,2]
[352256988,1739019075372,-500.0,0.00010804,2]
[352256989,1739019075381,-4152.92,0.00010804,2]
[352256990,1739019075391,-500.0,0.00010804,2]
[352256991,1739019075407,-500.0,0.00010804,2]
[352256992,1739019075422,-818.07,0.00010804,2]
[352256993,1739019075432,-500.0,0.00010804,2]
[352256994,1739019075441,-500.0,0.00010804,2]
[352256995,1739019075450,-1570.09,0.00010804,2]
[352256996,1739019075460,-500.0,0.00010804,2]
[352256997,1739019075469,-2671.65,0.00010804,2]
[352256998,1739019075478,-500.0,0.00010804,2]
[352256999,1739019075487,-500.0,0.00010804,2]
[352257000,1739019075498,-500.0,0.00010804,2]
[352257001,1739019075507,-1029.34,0.00010804,2]
[352257002,1739019075517,-500.0,0.00010804,2]
[352257003,1739019075526,-313.66221095,0.00010804,2]
[352257004,1739019075536,-679.98,0.00010804,2]
[352257005,1739019075546,-500.0,0.00010804,2]
[352257006,1739019075555,-862.4,0.00010804,2]
[352257007,1739019075567,-1691.54,0.00010804,2]
[352257008,1739019075576,-500.0,0.00010804,2]
[352257009,1739019075585,-500.0,0.00010804,2]
[352257010,1739019075595,-500.0,0.00010804,2]
[352257011,1739019075604,-500.0,0.00010804,2]
[352257012,1739019075613,-500.0,0.00010805,2]
[352257013,1739019075622,-500.0,0.00010805,2]
[352257014,1739019075631,-500.0,0.00010805,2]
[352257015,1739019075641,-500.0,0.00010805,2]
[352257016,1739019075650,-500.0,0.00010805,2]
[352257017,1739019075659,-500.0,0.00010805,2]
[352257018,1739019075668,-500.0,0.00010805,2]
[352257019,1739019075678,-500.0,0.00010805,2]
[352257020,1739019075687,-500.0,0.00010805,2]
[352257021,1739019075696,-500.0,0.00010805,2]
[352257022,1739019075705,-500.0,0.00010805,2]
[352257023,1739019075714,-500.0,0.00010805,2]
[352257024,1739019075723,-500.0,0.00010805,2]
[352257025,1739019075732,-500.0,0.00010805,2]
[352257026,1739019075742,-500.0,0.00010805,2]
[352257027,1739019075751,-500.0,0.00010805,2]
[352257028,1739019075760,-614.85724413,0.00010805,2]
[352257029,1739019075769,-500.0,0.00010805,2]
[352257030,1739019075779,-500.0,0.00010805,2]
[352257031,1739019075788,-500.0,0.00010805,2]
[352257032,1739019075800,-383.15412796,0.00010805,2]
[352257033,1739019075811,-500.0,0.00010805,2]
[352257034,1739019075821,-500.0,0.00010805,2]
[352257035,1739019075832,-500.0,0.00010805,2]
[352257036,1739019075841,-546.69,0.00010805,2]
[352257037,1739019075851,-1162.43,0.00010805,2]
[352257038,1739019075861,-1135.27,0.00010805,2]
[352257039,1739019075871,-500.0,0.00010805,2]
[352257040,1739019075881,-681.58,0.00010805,2]
[352257041,1739019075890,-1144.8,0.00010805,2]
[352257042,1739019075900,-500.0,0.00010805,2]
[352257043,1739019075910,-500.0,0.00010805,2]
[352257044,1739019075920,-727.04,0.00010805,2]
[352257045,1739019075929,-810.06,0.00010805,2]
[352257046,1739019075938,-500.0,0.00010805,2]
[352257047,1739019075948,-811.55,0.00010805,2]
[352257048,1739019075957,-1783.61,0.00010805,2]
[352257049,1739019075968,-1107.8,0.00010805,2]
[352257050,1739019075977,-500.0,0.00010805,2]
[352257051,1739019075987,-500.0,0.00010805,2]
[352257052,1739019075997,-500.0,0.00010805,2]
[352257053,1739019076007,-801.13,0.00010805,2]
[352257054,1739019076016,-500.0,0.00010805,2]
[352257055,1739019076026,-611.29,0.00010805,2]
[352257056,1739019076036,-500.0,0.00010805,2]
[352257057,1739019076045,-500.0,0.00010805,2]
[352257058,1739019076055,-500.0,0.00010805,2]
[352257059,1739019076065,-500.0,0.00010805,2]
[352257060,1739019076074,-1050.84,0.00010805,2]
[352257061,1739019076084,-700.34,0.00010805,2]
[352257062,1739019076094,-822.05,0.00010805,2]
[352257063,1739019076103,-500.0,0.00010805,2]
[352257064,1739019076113,-500.0,0.00010805,2]
[352257065,1739019076123,-500.0,0.00010805,2]
[352257066,1739019076134,-596.95,0.00010805,2]
[352257067,1739019076144,-566.69,0.00010805,2]
[352257068,1739019076154,-516.81,0.00010805,2]
[352257069,1739019076164,-500.0,0.00010805,2]
[352257070,1739019076174,-1602.74,0.00010805,2]
[352257071,1739019076183,-655.84,0.00010805,2]
[352257072,1739019076193,-634.65,0.00010805,2]
[352257073,1739019076202,-784.6,0.00010805,2]
[352257074,1739019076212,-686.17,0.00010805,2]
[352257075,1739019076221,-1408.14,0.00010805,2]
[352257076,1739019076230,-500.0,0.00010805,2]
[352257077,1739019076239,-500.0,0.00010805,2]
[352257078,1739019076248,-641.09,0.00010805,2]
[352257079,1739019076258,-645.26,0.00010805,2]
[352257080,1739019076267,-500.0,0.00010805,2]
[352257081,1739019076277,-1518.89,0.00010805,2]
[352257082,1739019076286,-523.0,0.00010805,2]
[352257083,1739019076295,-601.38,0.00010805,2]
[352257084,1739019076305,-508.58474871,0.00010805,2]
[352257085,1739019076317,-1614.82,0.00010805,2]
[352257086,1739019076326,-500.0,0.00010805,2]
[352257087,1739019076336,-500.0,0.00010805,2]
[352257088,1739019076345,-500.0,0.00010805,2]
[352257089,1739019076355,-500.0,0.00010805,2]
[352257090,1739019076365,-924.8,0.00010805,2]
[352257091,1739019076375,-584.46,0.00010805,2]
[352257092,1739019076384,-566.77,0.00010805,2]
[352257093,1739019076394,-514.76,0.00010805,2]
[352257094,1739019076407,-711.62,0.00010805,2]
[352257095,1739019076416,-534.43,0.00010805,2]
[352257096,1739019076426,-500.0,0.00010805,2]
[352257097,1739019076435,-500.0,0.00010805,2]
[352257098,1739019076446,-1238.8,0.00010805,2]
[352257099,1739019076455,-500.0,0.00010805,2]
[352257100,1739019076465,-621.2,0.00010805,2]
[352257101,1739019076476,-500.0,0.00010805,2]
[352257102,1739019076485,-1258.69,0.00010805,2]
[352257103,1739019076495,-843.8,0.00010805,2]
[352257104,1739019076505,-500.0,0.00010805,2]
[352257105,1739019076514,-500.0,0.00010805,2]
[352257106,1739019076524,-500.0,0.00010805,2]
[352257107,1739019076533,-500.0,0.00010805,2]
[352257108,1739019076543,-500.0,0.00010805,2]
[352257109,1739019076552,-1577.24,0.00010805,2]
[352257110,1739019076563,-500.0,0.00010805,2]
[352257111,1739019076573,-558.66,0.00010805,2]
[352257112,1739019076582,-500.0,0.00010805,2]
[352257113,1739019076592,-732.41,0.00010805,2]
[352257114,1739019076602,-500.0,0.00010805,2]
[352257115,1739019076611,-500.0,0.00010805,2]
[352257116,1739019076621,-668.02,0.00010805,2]
[352257117,1739019076630,-500.0,0.00010805,2]
[352257118,1739019076640,-577.37297556,0.00010805,2]
[352257119,1739019076650,-527.8873155,0.00010805,2]
[352257120,1739019076659,-1376.68,0.00010805,2]
[352257121,1739019076669,-578.18,0.00010805,2]
[352257122,1739019076679,-1234.59,0.00010805,2]
[352257123,1739019076688,-500.0,0.00010805,2]
[352257124,1739019076697,-545.13,0.00010805,2]
[352257125,1739019076707,-500.0,0.00010805,2]
[352257126,1739019076716,-500.0,0.00010805,2]
[352257127,1739019076725,-702.19,0.00010805,2]
[352257128,1739019076735,-500.0,0.00010805,2]
[352257129,1739019076745,-500.0,0.00010805,2]
[352257130,1739019076754,-664.46,0.00010805,2]
[352257131,1739019076764,-1351.05,0.00010805,2]
[352257132,1739019076774,-672.31,0.00010805,2]
[352257133,1739019076784,-848.69,0.00010805,2]
[352257134,1739019076793,-500.0,0.00010805,2]
[352257135,1739019076802,-500.0,0.00010805,2]
[352257136,1739019076813,-698.15,0.00010805,2]
[352257137,1739019076822,-961.88,0.00010805,2]
[352257138,1739019076831,-1098.18,0.00010805,2]
[352257139,1739019076841,-500.0,0.00010805,2]
[352257140,1739019076850,-500.0,0.00010805,2]
[352257141,1739019076859,-1230.69,0.00010805,2]
[352257142,1739019076869,-500.0,0.00010805,2]
[352257143,1739019076878,-500.0,0.00010805,2]
[352257144,1739019076887,-500.0,0.00010805,2]
[352257145,1739019076897,-500.0,0.00010805,2]
[352257146,1739019076906,-502.37,0.00010805,2]
[352257147,1739019076916,-500.0,0.00010805,2]
[352257148,1739019076926,-500.0,0.00010805,2]
[352257149,1739019076937,-547.92,0.00010805,2]
[352257150,1739019076947,-500.0,0.00010805,2]
[352257151,1739019076958,-589.64,0.00010805,2]
[352257152,1739019076969,-736.0,0.00010805,2]
[352257153,1739019076980,-500.0,0.00010805,2]
[352257154,1739019076990,-500.0,0.00010805,2]
[352257155,1739019077000,-500.0,0.00010805,2]
[352257156,1739019077009,-500.0,0.00010805,2]
[352257157,1739019077019,-785.96,0.00010805,2]
[352257158,1739019077029,-500.0,0.00010805,2]
[352257159,1739019077040,-664.98,0.00010805,2]
[352257160,1739019077052,-500.0,0.00010805,2]
[352257161,1739019077062,-500.0,0.00010805,2]
[352257162,1739019077072,-504.79,0.00010805,2]
[352257163,1739019077083,-500.0,0.00010805,2]
[352257164,1739019077094,-500.0,0.00010805,2]
[352257165,1739019077284,-739.53,0.00010805,2]
[352257166,1739019077294,-1829.05,0.00010805,2]
[352257167,1739019077303,-500.0,0.00010805,2]
[352257168,1739019077314,-500.0,0.00010805,2]
[352257169,1739019077323,-500.0,0.00010805,2]
[352257170,1739019077333,-500.0,0.00010805,2]
[352257171,1739019077342,-500.0,0.00010805,2]
[352257172,1739019077351,-625.61,0.00010805,2]
[352257173,1739019077361,-749.8,0.00010805,2]
[352257174,1739019077370,-1500.55,0.00010805,2]
[352257175,1739019077379,-550.9,0.00010805,2]
[352257176,1739019077388,-500.0,0.00010805,2]
[352257177,1739019077400,-762.56,0.00010805,2]
[352257178,1739019077411,-651.58,0.00010805,2]
[352257179,1739019077421,-688.8,0.00010805,2]
[352257180,1739019077431,-500.0,0.00010805,2]
[352257181,1739019077442,-593.97309147,0.00010805,2]
[352257182,1739019077451,-503.93,0.00010805,2]
[352257183,1739019077460,-500.0,0.00010805,2]
[352257184,1739019077471,-500.0,0.00010805,2]
[352257185,1739019077481,-824.16,0.00010805,2]
[352257186,1739019077492,-500.0,0.00010805,2]
[352257187,1739019077502,-500.0,0.00010805,2]
[352257188,1739019077512,-597.19,0.00010805,2]
[352257189,1739019077522,-759.56,0.00010805,2]
[352257190,1739019077531,-692.04,0.00010805,2]
[352257191,1739019077540,-1415.76,0.00010805,2]
[352257192,1739019077549,-500.0,0.00010805,2]
[352257193,1739019077559,-610.47,0.00010805,2]
[352257194,1739019077569,-500.0,0.00010805,2]
[352257195,1739019077578,-502.35367665,0.00010805,2]
[352257196,1739019077588,-1795.35,0.00010805,2]
[352257197,1739019077597,-500.0,0.00010805,2]
[352257198,1739019077607,-500.0,0.00010805,2]
[352257199,1739019077616,-500.0,0.00010805,2]
[352257200,1739019077626,-500.0,0.00010805,2]
[352257201,1739019077635,-500.0,0.00010805,2]
[352257202,1739019077644,-722.92,0.00010805,2]
[352257203,1739019077654,-500.0,0.00010805,2]
[352257204,1739019077663,-500.0,0.00010805,2]
[352257205,1739019077672,-500.0,0.00010805,2]
[352257206,1739019077681,-696.7,0.00010805,2]
[352257207,1739019077691,-1014.75,0.00010805,2]
[352257208,1739019077700,-500.0,0.00010805,2]
[352257209,1739019077710,-1491.65,0.00010805,2]
[352257210,1739019077719,-500.0,0.00010805,2]
[352257211,1739019077728,-659.72,0.00010805,2]
[352257212,1739019077737,-635.45,0.00010805,2]
[352257213,1739019077746,-402.78473389,0.00010805,2]
[352257214,1739019077755,-1440.95,0.00010805,2]
[352257215,1739019077765,-500.0,0.00010805,2]
[352257216,1739019077774,-570.01,0.00010805,2]
[352257217,1739019077784,-561.8,0.00010805,2]
[352257218,1739019077794,-10803.61,0.00010805,2]
[352257219,1739019077803,-1177.71,0.00010805,2]
[352257220,1739019077813,-1665.48,0.00010805,2]
[352257221,1739019077823,-500.0,0.00010805,2]
[352257222,1739019077833,-500.0,0.00010805,2]
[352257223,1739019077842,-1542.87,0.00010805,2]
[352257224,1739019077852,-505.99394125,0.00010805,2]
[352257225,1739019077861,-500.0,0.00010805,2]
[352257226,1739019077870,-499.23576813,0.00010805,2]
[352257227,1739019077880,-500.0,0.00010805,2]
[352257228,1739019077889,-500.0,0.00010805,2]
[352257229,1739019077899,-2013.31,0.00010805,2]
[352257230,1739019077909,-1526.43,0.00010805,2]
[352257231,1739019077919,-500.0,0.00010805,2]
[352257232,1739019077928,-1414.63,0.00010805,2]
[352257233,1739019077938,-500.0,0.00010805,2]
[352257234,1739019077948,-500.0,0.00010805,2]
[352257235,1739019077958,-506.75,0.00010805,2]
[352257236,1739019077967,-500.0,0.00010805,2]
[352257237,1739019077977,-500.0,0.00010805,2]
[352257238,1739019077987,-500.0,0.00010805,2]
[352257239,1739019077998,-2271.3,0.00010805,2]
[352257240,1739019078008,-1267.0,0.00010805,2]
[352257241,1739019078017,-1254.27,0.00010805,2]
[352257242,1739019078028,-500.0,0.00010805,2]
[352257243,1739019078039,-764.29,0.00010805,2]
[352257244,1739019078048,-632.62,0.00010805,2]
[352257245,1739019078058,-1910.15,0.00010805,2]
[352257246,1739019078068,-1006.72,0.00010805,2]